bitfinex/quotes_SOLUSD_20211001
["timestamp","ask_amount","ask_price","bid_price","bid_amount"]
[1633098630634,2.78,151.05,150.94,3.83748518]
[1633098631233,2.78,151.05,150.95,3.83787017]
[1633098631434,2.78,151.05,150.94,3.83796352]
[1633098633437,2.78,151.05,150.96,3.83734328]
[1633098633639,2.78,151.05,150.96,22.70934328]
[1633098633837,2.78,151.05,150.97,7.68030152]
[1633098634035,2.78,151.05,150.98,3.83688143]
[1633098634235,2.78,151.05,150.97,11.51751481]
[1633098634435,21.60010548,151.1,150.97,11.51751481]
[1633098634436,2.78,151.08,150.97,11.51751481]
[1633098635638,2.78,151.08,150.98,3.83715437]
[1633098636038,2.78,151.08,150.98,3.81715437]
[1633098637138,2.78,151.08,150.98,21.554]
[1633098637338,2.78,151.08,150.99,7.68033855]
[1633098637739,27.65888818,151.07,150.94,2.78]
[1633098637939,2.78,151.06,150.91,467.84992366]
[1633098638139,2.78,151.06,150.92,7.6835563]
[1633098638342,2.80088,151.06,150.92,7.6835563]
[1633098644444,2.78,151.06,150.92,7.6835563]
[1633098646046,2.78,151.06,150.93,2.78]
[1633098646252,0.6587,151.08,150.94,7.70182968]
[1633098646447,0.6587,151.08,150.95,2.80088]
[1633098646648,0.6587,151.08,150.96,7.70149566]
[1633098646849,0.6587,151.08,150.97,2.78]
[1633098647048,0.6587,151.08,150.98,7.68050999]
[1633098647247,0.6587,151.08,150.99,2.78]
[1633098648852,0.6587,151.08,151.0,7.67963336]
[1633098649053,0.6587,151.08,151.01,2.78]
[1633098649250,0.6587,151.08,151.02,7.67880447]
[1633098649449,0.6587,151.08,151.03,2.78]
[1633098649651,2.78,151.17,151.04,43.0]
[1633098649853,2.78,151.19,151.05,2.78]
[1633098650051,2.78,151.19,151.06,7.6769261]
[1633098650251,2.78,151.24,151.07,2.78]
[1633098650451,2.78,151.24,151.07,183.528]
[1633098650651,2.78,151.24,151.08,112.43108]
[1633098650852,2.78,151.24,151.09,2.80088]
[1633098651052,2.78,151.24,151.1,0.02088]
[1633098651253,2.78,151.24,151.11,2.78]
[1633098651456,2.78,151.24,151.11,18.067]
[1633098652653,26.52889318,151.24,151.11,2.78]
[1633098653053,2.78,151.24,151.11,2.78]
[1633098659058,2.78,151.24,151.11,24.405]
[1633098660462,2.78,151.24,151.11,2.78]
[1633098663662,2.78,151.24,151.11,21.63665802]
[1633098664065,0.02088,151.3,151.11,21.63665802]
[1633098664263,2.78,151.29,151.12,29.18864108]
[1633098664464,0.02088,151.34,151.13,2.78]
[1633098664465,2.78,151.3,151.13,2.78]
[1633098664664,0.02088,151.34,151.14,0.02088]
[1633098664665,2.78,151.31,151.14,0.02088]
[1633098664863,2.78,151.31,151.15,2.78]
[1633098665063,2.78,151.31,151.15,31.98952108]
[1633098665263,2.78,151.31,151.16,29.18864108]
[1633098665462,2.78,151.36,151.17,2.78]
[1633098665663,2.78,151.36,151.18,0.02088]
[1633098665862,2.78,151.36,151.19,2.78]
[1633098666263,2.78,151.36,151.2,19.56778299]
[1633098666463,2.78,151.36,151.21,2.78]
[1633098667065,2.78,151.36,151.21,127.41533518]
[1633098667264,2.78,151.36,151.22,78.1936]
[1633098667465,2.78,151.36,151.23,2.78]
[1633098667664,2.78,151.36,151.23,22.2408941]
[1633098668063,66.9158,151.42,151.24,0.02088]
[1633098668265,2.78,151.41,151.25,2.78]
[1633098668464,2.78,151.41,151.25,2.80088]
[1633098668666,2.78,151.41,151.25,51.45041518]
[1633098668865,2.78,151.41,151.26,19.4608941]
[1633098669067,2.78,151.41,151.27,2.78]
[1633098669270,2.78,151.41,151.28,0.02088]
[1633098669472,2.78,151.45,151.29,2.78]
[1633098669677,2.78,151.45,151.29,37.9538941]
[1633098669871,2.78,151.45,151.3,79.5368]
[1633098670073,2.78,151.45,151.31,2.78]
[1633098670272,2.78,151.45,151.31,22.2408941]
[1633098670671,2.78,151.45,151.32,19.4608941]
[1633098670871,2.78,151.45,151.33,2.78]
[1633098671270,2.78,151.45,151.33,79.4276]
[1633098671474,2.78,151.45,151.33,101.8536]
[1633098672274,2.78,151.45,151.33,25.206]
[1633098672872,2.78,151.45,151.33,2.78]
[1633098674274,2.78,151.45,151.27,104.29074108]
[1633098674275,0.02088,151.44,151.29,2.78]
[1633098674474,28.83063735,151.42,151.29,2.78]
[1633098674676,2.78,151.41,151.29,2.78]
[1633098676076,32.5692245,151.45,151.29,2.78]
[1633098676274,32.5692245,151.45,151.29,19.824]
[1633098677281,32.5692245,151.45,151.29,2.78]
[1633098680100,2.78,151.45,151.29,2.78]
[1633098680297,2.78,151.45,151.29,31.96864108]
[1633098681098,30.24845786,151.45,151.29,31.96864108]
[1633098681299,2.78,151.45,151.29,31.96864108]
[1633098682102,2.78,151.45,151.3,43.0]
[1633098682303,2.78,151.45,151.31,2.78]
[1633098684000,0.02088,151.46,151.3,43.0]
[1633098684201,2.78,151.45,151.31,2.78]
[1633098684401,2.78,151.44,151.31,2.78]
[1633098684602,29.05585632,151.43,151.31,2.78]
[1633098685001,2.78,151.44,151.31,2.78]
[1633098685207,2.78,151.44,151.31,495.74667321]
[1633098685403,2.78,151.49,151.32,19.60533854]
[1633098685602,2.78,151.49,151.33,2.78]
[1633098685802,2.78,151.49,151.34,0.02088]
[1633098686004,23.70116705,151.48,151.35,2.78]
[1633098686203,2.78,151.47,151.35,78.14728]
[1633098686402,2.78,151.47,151.32,2.78]
[1633098686602,2.78,151.47,151.32,76.7863]
[1633098687708,2.78,151.47,151.32,2.78]
[1633098688103,2.74690368,151.47,151.32,2.78]
[1633098689907,0.02088,151.46,151.32,2.78]
[1633098690106,2.78,151.45,151.32,2.78]
[1633098690312,2.80088,151.45,151.32,2.78]
[1633098690507,2.78,151.45,151.32,2.78]
[1633098691108,2.78,151.49,151.33,30.52421173]
[1633098691309,2.78,151.49,151.34,4.55535897]
[1633098691711,2.78,151.49,151.35,1.77703643]
[1633098691910,2.78,151.49,151.36,2.78]
[1633098692710,2.78,151.49,151.36,4.55119092]
[1633098693514,2.78,151.49,151.37,1.77349518]
[1633098693714,2.78,151.49,151.38,2.78]
[1633098693912,2.78,151.49,151.38,4.55189067]
[1633098694112,2.78,151.53,151.39,66.13]
[1633098694313,2.78,151.55,151.41,1.74668717]
[1633098694512,2.78,151.55,151.43,1.73744273]
[1633098694713,2.78,151.55,151.43,4.51744273]
[1633098694917,2.78,151.55,151.44,1.73816752]
[1633098695114,2.78,151.55,151.43,4.51870273]
[1633098695518,2.78,151.55,151.44,1.73778526]
[1633098695715,2.78,151.55,151.43,4.52328966]
[1633098695915,2.78,151.55,151.43,2.78]
[1633098699017,2.78,151.58,151.44,1.72726898]
[1633098699215,2.78,151.58,151.45,2.78]
[1633098701819,2.78,151.58,151.46,31.44830666]
[1633098702018,2.78,151.58,151.47,2.78]
[1633098702217,2.78,151.58,151.47,23.10586601]
[1633098702418,2.78,151.58,151.47,131.93947148]
[1633098702618,2.78,151.58,151.47,130.28237267]
[1633098703221,2.78,151.62,151.47,130.28237267]
[1633098703417,2.78,151.62,151.48,20.32586601]
[1633098703617,0.02088,151.69,151.48,20.32586601]
[1633098703819,2.80088,151.69,151.49,34.22830666]
[1633098704217,2.80088,151.69,151.49,54.55417267]
[1633098704619,27.15226987,151.68,151.49,54.55417267]
[1633098704817,2.78,151.67,151.49,54.55417267]
[1633098705017,2.78,151.67,151.5,31.44830666]
[1633098705219,2.78,151.67,151.51,2.78]
[1633098705821,30.98278912,151.67,151.51,2.78]
[1633098707622,0.00088,151.71,151.7,33.32805048]
[1633098707820,0.07,151.86,151.7,14.81117897]
[1633098708019,0.07,151.86,151.7,17.59117897]
[1633098708421,0.07,151.86,151.7,39.4192672]
[1633098708621,0.07,151.86,151.71,0.04088]
[1633098708821,0.07,151.86,151.72,2.78]
[1633098709022,0.07,151.86,151.73,69.43088]
[1633098709221,0.07,151.86,151.74,126.51798]
[1633098709418,0.07,151.86,151.74,126.4771]
[1633098709619,0.07,151.86,151.75,69.43088]
[1633098709822,0.07,151.86,151.76,2.82088]
[1633098710019,0.07,151.86,151.77,0.04088]
[1633098710219,0.07,151.86,151.78,2.78]
[1633098710419,0.07,151.86,151.79,0.04088]
[1633098710621,0.07,151.86,151.8,2.78]
[1633098710818,0.07,151.86,151.81,0.04088]
[1633098711021,0.07,151.86,151.82,2.78]
[1633098713625,0.07,151.86,151.74,123.73798]
[1633098713823,28.9541889,151.8,151.75,2.78]
[1633098714022,28.9541889,151.8,151.74,0.04088]
[1633098714223,28.9541889,151.8,151.7,17.63205897]
[1633098714423,31.7341889,151.8,151.7,14.81117897]
[1633098714622,51.68060879,151.8,151.7,14.81117897]
[1633098716424,2.4021209,151.79,151.7,14.81117897]
[1633098716627,2.78,151.78,151.7,14.81117897]
[1633098717026,19.94641989,151.77,151.7,0.00117897]
[1633098717225,75.78,151.76,151.58,0.04088]
[1633098717625,19.94641989,151.75,151.58,0.04088]
[1633098717825,2.78,151.74,151.58,0.04088]
[1633098718229,23.26088666,151.73,151.58,0.04088]
[1633098718426,2.78,151.72,151.58,0.04088]
[1633098719025,2.78,151.72,151.59,2.78]
[1633098719225,2.78,151.72,151.6,0.04088]
[1633098722630,16.4972,151.82,151.6,0.04088]
[1633098723028,18.84141989,151.81,151.6,0.04088]
[1633098723431,23.82218946,151.8,151.6,0.04088]
[1633098723830,18.84141989,151.79,151.6,0.04088]
[1633098724630,18.84141989,151.79,151.58,0.04088]
[1633098724828,36.36041989,151.79,151.58,0.04088]
[1633098725429,18.84141989,151.78,151.58,0.04088]
[1633098725630,27.09460254,151.77,151.58,0.04088]
[1633098726029,45.93602243,151.77,151.58,0.04088]
[1633098727329,69.16402243,151.77,151.58,0.04088]
[1633098727530,69.16402243,151.77,151.57,0.04088]
[1633098727929,69.16402243,151.77,151.56,75.04088]
[1633098728930,76.65348243,151.77,151.56,0.04088]
[1633098729130,16.5039,151.74,151.52,0.04088]
[1633098729336,28.68845922,151.73,151.52,0.04088]
[1633098729532,47.52987911,151.73,151.52,0.04088]
[1633098730733,18.84141989,151.72,151.52,0.04088]
[1633098732832,23.73885968,151.68,151.52,0.04088]
[1633098733032,23.73885968,151.68,151.5,0.242963]
[1633098734833,23.73885968,151.68,151.5,1.8156382]
[1633098735032,23.73885968,151.68,151.51,0.04088]
[1633098735234,23.73885968,151.68,151.5,1.80499514]
[1633098735433,23.73885968,151.68,151.51,0.04088]
[1633098736033,23.73885968,151.68,151.5,0.242963]
[1633098737033,23.73885968,151.68,151.5,1.81190687]
[1633098737234,23.73885968,151.68,151.51,0.04088]
[1633098737834,18.84141989,151.72,151.52,0.04088]
[1633098738435,18.84141989,151.72,151.52,1.59592635]
[1633098738635,18.84141989,151.72,151.53,0.04088]
[1633098738834,28.19970692,151.71,151.52,0.04088]
[1633098740334,18.84141989,151.72,151.52,0.04088]
[1633098740734,18.84141989,151.72,151.52,1.61571952]
[1633098740935,16.5031,151.74,151.52,1.57483952]
[1633098741135,16.5031,151.74,151.53,1.61875465]
[1633098741336,25.04952945,151.73,151.54,0.04088]
[1633098741737,25.04952945,151.73,151.54,1.57554038]
[1633098741936,25.04952945,151.73,151.55,0.04088]
[1633098742136,25.04952945,151.73,151.54,0.04088]
[1633098742939,25.04952945,151.73,151.54,1.62786484]
[1633098743139,43.89094934,151.73,151.55,0.04088]
[1633098743340,43.89094934,151.73,151.54,0.04088]
[1633098743942,43.89094934,151.73,151.55,1.58439472]
[1633098744138,43.89094934,151.73,151.56,0.04088]
[1633098744338,43.89094934,151.73,151.55,0.04088]
[1633098745138,43.89094934,151.73,151.55,1.58889272]
[1633098745342,43.89094934,151.73,151.55,0.04088]
[1633098747341,43.89094934,151.73,151.54,0.04088]
[1633098748142,43.89094934,151.73,151.54,1.58180159]
[1633098748342,43.89094934,151.73,151.55,0.04088]
[1633098748741,43.89094934,151.73,151.55,1.57363369]
[1633098748943,43.89094934,151.73,151.56,1.56758553]
[1633098749142,43.89094934,151.73,151.57,0.04088]
[1633098749341,18.84141989,151.73,151.57,20.10288]
[1633098749543,18.84141989,151.73,151.58,0.04088]
[1633098749742,48.05390481,151.78,151.58,0.04088]
[1633098749944,48.05390481,151.78,151.57,0.04088]
[1633098750145,18.84141989,151.78,151.58,2.24]
[1633098750341,18.84141989,151.78,151.59,0.04088]
[1633098750741,18.84141989,151.78,151.6,0.04088]
[1633098750942,23.03733013,151.79,151.61,2.24]
[1633098751142,23.03733013,151.79,151.62,0.04088]
[1633098752142,22.53733013,151.79,151.62,0.04088]
[1633098754343,41.37875002,151.79,151.61,0.04088]
[1633098757643,18.84141989,151.79,151.61,0.04088]
[1633098757849,18.84141989,151.79,151.61,2.28088]
[1633098758047,18.84141989,151.84,151.62,0.04088]
[1633098758245,18.84141989,151.84,151.62,17.19488]
[1633098758445,18.84141989,151.84,151.63,0.04088]
[1633098758646,23.90795675,151.83,151.63,0.04088]
[1633098759047,42.74937664,151.83,151.62,0.04088]
[1633098762253,71.87519489,151.83,151.62,0.04088]
[1633098762652,71.87519489,151.83,151.61,0.04088]
[1633098763056,16.4928,151.8,151.61,0.04088]
[1633098763254,22.07904157,151.79,151.61,0.04088]
[1633098763455,22.07904157,151.79,151.6,0.04088]
[1633098763853,40.84823924,151.79,151.6,0.04088]
[1633098764252,40.84823924,151.79,151.59,0.04088]
[1633098766756,40.84823924,151.79,151.57,0.04088]
[1633098767756,16.4982,151.76,151.57,0.04088]
[1633098767957,26.57187809,151.75,151.57,0.04088]
[1633098771158,26.57187809,151.75,151.57,1.64871575]
[1633098771357,26.57187809,151.75,151.58,0.04088]
[1633098771557,26.57187809,151.75,151.57,0.04088]
[1633098771758,26.57187809,151.75,151.57,1.64872933]
[1633098771957,26.57187809,151.75,151.58,0.04088]
[1633098772157,26.57187809,151.75,151.57,0.04088]
[1633098772559,45.34107576,151.75,151.57,0.04088]
[1633098773158,45.34107576,151.75,151.56,0.04088]
[1633098773560,45.34107576,151.75,151.56,1.66773783]
[1633098773760,45.34107576,151.75,151.57,0.04088]
[1633098774760,45.34107576,151.75,151.56,0.04088]
[1633098777061,16.5003,151.72,151.56,0.04088]
[1633098777262,22.30444389,151.71,151.56,0.04088]
[1633098777462,41.85960805,151.71,151.56,0.04088]
[1633098777661,41.85960805,151.71,151.55,470.52230435]
[1633098778062,41.85960805,151.71,151.55,59.0]
[1633098778263,41.85960805,151.71,151.54,1.67699708]
[1633098778465,41.85960805,151.71,151.55,1.63715108]
[1633098778663,41.85960805,151.71,151.54,1.67715394]
[1633098779263,19.55516416,151.7,151.54,1.67715394]
[1633098779465,19.55516416,151.7,151.54,0.04088]
[1633098780263,19.55516416,151.7,151.54,1.68767834]
[1633098780465,19.55516416,151.7,151.54,0.04088]
[1633098781966,16.5046,151.67,151.54,0.04088]
[1633098782166,22.01744542,151.66,151.54,0.04088]
[1633098782365,41.57260958,151.66,151.52,473.27657524]
[1633098782564,19.55516416,151.65,151.52,473.27657524]
[1633098782764,19.55516416,151.65,151.51,50.66396688]
[1633098782965,19.55516416,151.65,151.51,49.0]
[1633098783164,16.5096,151.62,151.51,49.0]
[1633098783365,26.25066304,151.61,151.51,49.0]
[1633098784466,16.5096,151.62,151.51,49.0]
[1633098786467,19.55516416,151.65,151.51,49.0]
[1633098786671,19.55516416,151.65,151.53,1.70719792]
[1633098786866,16.5041,151.68,151.54,0.04088]
[1633098787268,16.5041,151.68,151.53,1.74165199]
[1633098787467,16.5041,151.68,151.54,0.04088]
[1633098788267,16.5041,151.68,151.53,0.04088]
[1633098788468,16.5041,151.68,151.53,1.76646302]
[1633098788667,16.5041,151.68,151.54,1.76582097]
[1633098789871,16.5041,151.68,151.54,0.04088]
[1633098790275,36.76480604,151.68,151.52,1.77970387]
[1633098790674,36.76480604,151.68,151.53,1.78432664]
[1633098792774,36.76480604,151.68,151.54,1.77093915]
[1633098793174,36.76480604,151.68,151.55,1.76317253]
[1633098793576,20.26070604,151.68,151.55,1.76317253]
[1633098793775,48.85589704,151.73,151.56,1.73487042]
[1633098793978,48.85589704,151.73,151.56,21.56987042]
[1633098794374,48.85589704,151.73,151.57,1.7559607]
[1633098794575,19.53848381,151.73,151.58,1.70889945]
[1633098794775,19.53848381,151.73,151.59,1.70084501]
[1633098795175,19.53848381,151.73,151.59,17.01584501]
[1633098795374,19.53848381,151.73,151.6,1.71693624]
[1633098795678,16.5051,151.77,151.61,1.75474759]
[1633098796074,46.44631558,151.78,151.62,1.72053905]
[1633098796274,46.44631558,151.78,151.63,0.04088]
[1633098797475,46.44631558,151.78,151.62,0.04088]
[1633098797675,46.44631558,151.78,151.62,79.32019871]
[1633098797875,46.44631558,151.78,151.63,0.04088]
[1633098797876,26.90783177,151.78,151.63,0.04088]
[1633098798076,29.28436769,151.84,151.63,0.04088]
[1633098798276,93.72623653,151.85,151.63,1.72547246]
[1633098798477,18.45293653,151.84,151.64,0.04088]
[1633098799077,30.15736983,151.83,151.64,0.04088]
[1633098799677,48.61030636,151.83,151.63,1.73018606]
[1633098799878,48.61030636,151.83,151.64,0.04088]
[1633098800084,48.61030636,151.83,151.65,468.05956914]
[1633098800282,48.61030636,151.83,151.66,0.04088]
[1633098800680,48.61030636,151.83,151.62,69.0]
[1633098800880,30.65658992,151.82,151.63,0.04088]
[1633098801081,30.65658992,151.82,151.6,0.04088]
[1633098801280,19.24738098,151.81,151.59,0.04088]
[1633098801479,28.84989151,151.8,151.59,0.04088]
[1633098801680,28.84989151,151.8,151.59,1.77306513]
[1633098801681,16.4931,151.79,151.59,1.77306513]
[1633098801880,35.74048098,151.79,151.6,0.04088]
[1633098802083,19.24738098,151.78,151.59,0.04088]
[1633098802286,28.15570359,151.77,151.58,0.04088]
[1633098802481,73.3345,151.76,151.58,0.04088]
[1633098802683,92.58188098,151.76,151.58,0.04088]
[1633098802880,19.24738098,151.75,151.58,0.04088]
[1633098803086,27.13950678,151.74,151.58,0.04088]
[1633098803481,46.38688776,151.74,151.58,0.04088]
[1633098804285,64.63788776,151.74,151.58,0.04088]
[1633098804690,64.63788776,151.74,151.57,0.04088]
[1633098805486,64.63788776,151.74,151.57,1.81453367]
[1633098805686,64.63788776,151.74,151.58,0.04088]
[1633098805887,46.38688776,151.74,151.58,0.04088]
[1633098806688,46.38688776,151.74,151.56,1.72977854]
[1633098806689,19.24738098,151.74,151.57,0.04088]
[1633098806891,19.24738098,151.74,151.57,1.76654492]
[1633098807091,19.24738098,151.74,151.58,0.04088]
[1633098807691,26.31647329,151.73,151.58,0.04088]
[1633098808092,73.5051,151.81,151.58,0.04088]
[1633098808295,73.5051,151.81,151.59,4.4702313]
[1633098808491,73.5051,151.81,151.6,0.04088]
[1633098808892,91.74136987,151.81,151.6,0.04088]
[1633098809094,28.58437477,151.8,151.6,1.72786307]
[1633098809293,28.58437477,151.8,151.61,0.04088]
[1633098810291,28.58437477,151.8,151.61,1.72967037]
[1633098810491,28.58437477,151.8,151.62,0.04088]
[1633098811092,46.82064464,151.8,151.62,0.04088]
[1633098812093,46.82064464,151.8,151.67,0.04088]
[1633098813498,46.82064464,151.8,151.63,74.45931206]
[1633098813499,46.82064464,151.8,151.64,0.04088]
[1633098818799,46.82064464,151.8,151.64,4.56029416]
[1633098818999,18.23626987,151.8,151.65,0.04088]
[1633098819202,18.23626987,151.8,151.65,1.80335408]
[1633098819400,18.23626987,151.8,151.66,0.04088]
[1633098821400,93.27426987,151.84,151.66,0.04088]
[1633098821600,93.27426987,151.84,151.66,1.78965278]
[1633098821804,28.11458117,151.83,151.67,0.04088]
[1633098823010,46.35085104,151.83,151.67,0.04088]
[1633098823203,46.35085104,151.83,151.66,0.04088]
[1633098823603,46.35085104,151.83,151.66,1.84570888]
[1633098823804,46.35085104,151.83,151.67,0.04088]
[1633098824705,46.35085104,151.83,151.66,0.04088]
[1633098825105,46.35085104,151.83,151.66,1.8426584]
[1633098825305,46.35085104,151.83,151.67,0.04088]
[1633098826306,46.35085104,151.83,151.66,0.04088]
[1633098827407,46.35085104,151.83,151.66,1.84375591]
[1633098827607,46.35085104,151.83,151.67,0.04088]
[1633098828009,46.35085104,151.83,151.67,1.91088411]
[1633098828207,46.35085104,151.83,151.68,0.04088]
[1633098829808,46.35085104,151.83,151.67,0.04088]
[1633098830009,46.35085104,151.83,151.65,1.90996975]
[1633098830410,46.35085104,151.83,151.64,1.9509538]
[1633098831008,46.35085104,151.83,151.64,0.04088]
[1633098831208,46.35085104,151.83,151.64,1.95104351]
[1633098831407,46.35085104,151.83,151.64,0.04088]
[1633098831610,46.35085104,151.83,151.64,1.95104648]
[1633098834812,46.35085104,151.83,151.64,1.91016648]
[1633098835011,50.16994037,151.83,151.63,78.03274637]
[1633098835815,3.82084223,151.82,151.63,78.03274637]
[1633098836020,50.17157929,151.83,151.64,76.6552]
[1633098836213,29.30968148,151.8,151.64,76.6552]
[1633098836614,18.23626987,151.79,151.63,1.91064637]
[1633098840624,22.02390333,151.79,151.61,0.04088]
[1633098841023,18.23626987,151.79,151.61,0.04088]
[1633098841219,18.23626987,151.78,151.61,0.04088]
[1633098841432,26.98908421,151.77,151.6,0.04088]
[1633098841818,18.23626987,151.76,151.6,1.95195181]
[1633098842021,18.23626987,151.76,151.61,0.04088]
[1633098842621,18.23626987,151.76,151.6,1.95173767]
[1633098842821,18.23626987,151.76,151.61,0.04088]
[1633098843022,18.23626987,151.76,151.59,0.04088]
[1633098843626,18.23626987,151.76,151.58,0.04088]
[1633098846424,18.23626987,151.76,151.57,0.04088]
[1633098849525,84.36626987,151.76,151.56,0.04088]
[1633098849925,18.23626987,151.75,151.56,0.04088]
[1633098850126,23.62865034,151.74,151.56,0.04088]
[1633098850327,66.13,151.73,151.56,0.04088]
[1633098850527,66.13,151.73,151.55,0.04088]
[1633098850528,87.2381352,151.73,151.55,0.04088]
[1633098850727,87.2381352,151.73,151.5,2.11292967]
[1633098850728,87.2381352,151.73,151.51,0.04088]
[1633098850930,26.43100178,151.71,151.51,0.04088]
[1633098851332,94.53361298,151.7,151.51,0.04088]
[1633098851530,94.53361298,151.7,151.52,1.91065905]
[1633098851731,94.53361298,151.7,151.53,0.04088]
[1633098851929,94.53361298,151.7,151.53,1.94548604]
[1633098852130,94.53361298,151.7,151.54,0.04088]
[1633098852330,94.53361298,151.7,151.54,1.93544258]
[1633098852531,19.81781298,151.7,151.55,1.93102076]
[1633098852730,19.81781298,151.7,151.56,0.04088]
[1633098854747,398.69943345,151.84,151.58,1.86580748]
[1633098854748,17.67609015,151.77,151.58,1.86580748]
[1633098854949,77.4252,151.8,151.6,1.85572212]
[1633098855148,77.4252,151.8,151.61,0.04088]
[1633098855349,17.58557238,151.79,151.61,0.04088]
[1633098855551,30.31361506,151.78,151.61,1.89634708]
[1633098855748,30.31361506,151.78,151.62,0.04088]
[1633098855948,30.31361506,151.78,151.61,1.88709675]
[1633098856151,30.31361506,151.78,151.62,1.87847025]
[1633098856351,30.31361506,151.78,151.63,0.04088]
[1633098856752,30.31361506,151.78,151.62,0.04088]
[1633098856950,30.31361506,151.78,151.62,1.88797386]
[1633098857149,30.31361506,151.78,151.63,0.04088]
[1633098857550,30.31361506,151.78,151.62,0.04088]
[1633098858451,47.89918744,151.78,151.62,1.90787106]
[1633098858651,47.89918744,151.78,151.63,0.04088]
[1633098859055,47.89918744,151.78,151.61,1.86114878]
[1633098859056,47.89918744,151.78,151.62,0.04088]
[1633098859451,47.89918744,151.78,151.62,1.89499565]
[1633098859651,47.89918744,151.78,151.63,0.04088]
[1633098859852,17.58557238,151.78,151.63,0.04088]
[1633098860051,17.58557238,151.78,151.63,1.89234157]
[1633098860250,96.12947238,151.83,151.64,1.8835472]
[1633098860450,104.46980481,151.83,151.65,0.04088]
[1633098860651,17.58557238,151.81,151.64,0.04088]
[1633098860851,30.31097325,151.8,151.63,0.04088]
[1633098861251,17.58557238,151.79,151.63,0.04088]
[1633098862452,17.58557238,151.79,151.62,1.86391903]
[1633098862652,17.58557238,151.79,151.63,0.04088]
[1633098865155,17.58557238,151.79,151.63,1.90454807]
[1633098865355,17.58557238,151.79,151.64,0.04088]
[1633098865757,17.58557238,151.79,151.63,0.04088]
[1633098866757,17.58557238,151.79,151.63,1.90195399]
[1633098866957,17.58557238,151.79,151.64,0.04088]
[1633098867161,17.58557238,151.79,151.63,0.04088]
[1633098869859,17.58557238,151.79,151.62,1.86076119]
[1633098869860,17.58557238,151.79,151.61,80.93550994]
[1633098870063,17.58557238,151.79,151.61,79.07988]
[1633098870259,17.58557238,151.79,151.61,80.98936453]
[1633098870660,17.58557238,151.79,151.61,80.94848453]
[1633098870860,17.58557238,151.79,151.62,0.04088]
[1633098871460,17.58557238,151.79,151.62,1.95097254]
[1633098871662,17.58557238,151.79,151.63,0.04088]
[1633098872062,17.58557238,151.79,151.64,1.90539099]
[1633098872265,17.58557238,151.79,151.65,1.93769679]
[1633098872462,17.85120571,151.84,151.67,1.88428779]
[1633098872662,17.85120571,151.84,151.68,0.04088]
[1633098873064,23.42986267,151.83,151.68,1.91973221]
[1633098873263,23.42986267,151.83,151.69,1.91305419]
[1633098873461,23.42986267,151.83,151.7,0.04088]
[1633098873663,23.42986267,151.83,151.68,0.04088]
[1633098874263,23.42986267,151.83,151.67,0.04088]
[1633098874462,23.42986267,151.83,151.66,0.04088]
[1633098875062,17.85120571,151.84,151.66,0.04088]
[1633098875265,17.85120571,151.84,151.69,1.83239861]
[1633098875463,17.85120571,151.84,151.69,0.04088]
[1633098876664,17.85120571,151.84,151.68,0.04088]
[1633098876864,91.84290571,151.84,151.68,0.04088]
[1633098877866,91.84290571,151.84,151.67,0.04088]
[1633098878266,91.84290571,151.84,151.67,1.91720002]
[1633098878466,91.84290571,151.84,151.68,0.04088]
[1633098878666,91.84290571,151.84,151.67,0.04088]
[1633098879767,91.84290571,151.84,151.68,0.04088]
[1633098879970,17.85120571,151.84,151.68,0.04088]
[1633098880369,17.85120571,151.84,151.68,1.90655591]
[1633098880567,17.85120571,151.84,151.69,0.04088]
[1633098881469,17.85120571,151.84,151.69,1.91174562]
[1633098881668,17.85120571,151.84,151.7,0.04088]
[1633098881869,17.85120571,151.84,151.69,0.04088]
[1633098883669,55.81010571,151.84,151.69,0.04088]
[1633098883868,55.81010571,151.84,151.66,0.04088]
[1633098884068,17.77638349,151.83,151.65,75.3815]
[1633098884268,27.79765052,151.82,151.65,75.3815]
[1633098884669,18.62138349,151.81,151.65,75.3815]
[1633098886072,18.62138349,151.81,151.64,0.04088]